[Event "Vener-dì-Rapid"]
[Site "Chess.com"]
[Date "2020.05.22"]
[Round "1"]
[White "mr6701"]
[Black "sergiodone"]
[Result "1-0"]
[WhiteElo "1670"]
[BlackElo "1427"]
[TimeControl "720+3"]
[EndTime "12:09:40 PDT"]
[Termination "mr6701 ha vinto per abbandono"]

1. e4 {[%clk 0:11:32.1]} 1... c5 {[%clk 0:11:58.6]} 2. d4 {[%clk 0:11:33.8]}
2... cxd4 {[%clk 0:11:59.6]} 3. c3 {[%clk 0:11:35.9]} 3... d3 {[%clk 0:11:51.1]}
4. Bxd3 {[%clk 0:11:14.4]} 4... a6 {[%clk 0:11:52.8]} 5. Nf3 {[%clk 0:11:13.2]}
5... Nc6 {[%clk 0:11:51.7]} 6. O-O {[%clk 0:11:14.5]} 6... e6 {[%clk 0:11:48.7]}
7. e5 {[%clk 0:11:11.8]} 7... d6 {[%clk 0:11:45.5]} 8. Re1 {[%clk 0:11:09.6]}
8... Be7 {[%clk 0:11:46.7]} 9. Qc2 {[%clk 0:11:06.1]} 9... d5 {[%clk 0:11:48.1]}
10. Nbd2 {[%clk 0:11:03.3]} 10... b5 {[%clk 0:11:40.3]} 11. Nb3 {[%clk
0:10:57.6]} 11... Bb7 {[%clk 0:11:41.2]} 12. Bf4 {[%clk 0:10:56.2]} 12... Rb8
{[%clk 0:11:40.5]} 13. Rad1 {[%clk 0:10:56.4]} 13... h5 {[%clk 0:11:41.4]} 14.
Nbd4 {[%clk 0:10:47.1]} 14... Nxd4 {[%clk 0:11:38.1]} 15. cxd4 {[%clk
0:10:48.6]} 15... Rc8 {[%clk 0:11:37.3]} 16. Qe2 {[%clk 0:10:48.3]} 16... g5
{[%clk 0:11:38.4]} 17. Bc1 {[%clk 0:10:38.4]} 17... g4 {[%clk 0:11:40.2]} 18.
Nd2 {[%clk 0:10:39.8]} 18... Nh6 {[%clk 0:11:34.5]} 19. Nb3 {[%clk 0:10:35.1]}
19... h4 {[%clk 0:11:04.2]} 20. Bxh6 {[%clk 0:10:26]} 20... Rxh6 {[%clk
0:11:02.8]} 21. Qxg4 {[%clk 0:10:27.3]} 21... Kf8 {[%clk 0:10:51.9]} 22. Re3
{[%clk 0:10:16.6]} 22... Rh8 {[%clk 0:10:17.8]} 23. Rf3 {[%clk 0:10:07.8]} 23...
Bg5 {[%clk 0:09:54.3]} 24. Qxe6 {[%clk 0:09:46.2]} 24... Rc7 {[%clk 0:09:20.6]}
25. Bg6 {[%clk 0:09:16.7]} 25... Bc8 {[%clk 0:09:18.7]} 26. Rxf7+ {[%clk
0:09:11]} 26... Kg8 {[%clk 0:08:39.3]} 27. Rd7+ {[%clk 0:08:57]} 1-0

[Event "Vener-dì-Rapid"]
[Site "Chess.com"]
[Date "2020.05.22"]
[Round "1"]
[White "malberici"]
[Black "pedrak"]
[Result "0-1"]
[WhiteElo "1419"]
[BlackElo "1699"]
[TimeControl "720+3"]
[EndTime "12:10:17 PDT"]
[Termination "pedrak ha vinto per abbandono"]

1. d4 {[%clk 0:12:02.2]} 1... Nf6 {[%clk 0:11:58.2]} 2. c4 {[%clk 0:12:03.1]}
2... e6 {[%clk 0:11:55.7]} 3. Nc3 {[%clk 0:12:05.2]} 3... Bb4 {[%clk 0:11:56.4]}
4. a3 {[%clk 0:12:07.4]} 4... Bxc3+ {[%clk 0:11:57.6]} 5. bxc3 {[%clk
0:12:08.6]} 5... d6 {[%clk 0:11:58.7]} 6. Nf3 {[%clk 0:12:08.5]} 6... b6 {[%clk
0:11:58.8]} 7. Bg5 {[%clk 0:12:10.6]} 7... h6 {[%clk 0:11:57.8]} 8. e3 {[%clk
0:12:12.8]} 8... hxg5 {[%clk 0:11:55.6]} 9. Nxg5 {[%clk 0:12:13.8]} 9... Bb7
{[%clk 0:11:49.9]} 10. Qa4+ {[%clk 0:12:06]} 10... Qd7 {[%clk 0:11:48.5]} 11.
Qc2 {[%clk 0:12:00.4]} 11... Nc6 {[%clk 0:11:40.9]} 12. Be2 {[%clk 0:11:57.1]}
12... Na5 {[%clk 0:11:40.9]} 13. Nf3 {[%clk 0:11:52.6]} 13... Qe7 {[%clk
0:11:34]} 14. c5 {[%clk 0:11:47.9]} 14... dxc5 {[%clk 0:11:26]} 15. dxc5 {[%clk
0:11:48.8]} 15... Qxc5 {[%clk 0:11:25.4]} 16. Rd1 {[%clk 0:11:41.8]} 16... Be4
{[%clk 0:10:59.5]} 17. Qd2 {[%clk 0:11:38.3]} 17... Nc4 {[%clk 0:10:47.1]} 18.
Bxc4 {[%clk 0:11:20.8]} 18... Qxc4 {[%clk 0:10:47.6]} 19. Nd4 {[%clk 0:11:17.9]}
19... O-O {[%clk 0:10:41.5]} 20. f3 {[%clk 0:11:17.2]} 20... Bg6 {[%clk
0:10:38.5]} 21. Qf2 {[%clk 0:11:13]} 21... Qxc3+ {[%clk 0:10:36.9]} 22. Rd2
{[%clk 0:11:13.6]} 22... c5 {[%clk 0:10:30.3]} 23. Nb5 {[%clk 0:11:06.1]} 23...
Qa5 {[%clk 0:10:23.3]} 24. Nd6 {[%clk 0:10:51.8]} 24... Bd3 {[%clk 0:09:45.8]}
25. e4 {[%clk 0:10:17.9]} 25... c4 {[%clk 0:09:40.4]} 26. Nb7 {[%clk 0:09:21.6]}
26... Qxa3 {[%clk 0:09:32.1]} 27. Qe3 {[%clk 0:09:09.2]} 27... Qe7 {[%clk
0:09:14.4]} 28. e5 {[%clk 0:09:04.4]} 28... Nd5 {[%clk 0:09:13.9]} 29. Qd4
{[%clk 0:08:08.9]} 29... Qxb7 {[%clk 0:09:10.6]} 30. Kf2 {[%clk 0:08:06.2]}
30... Rfd8 {[%clk 0:09:07.8]} 31. Qc3 {[%clk 0:08:03.1]} 0-1

[Event "Vener-dì-Rapid"]
[Site "Chess.com"]
[Date "2020.05.22"]
[Round "1"]
[White "Mrtre7"]
[Black "laremaro"]
[Result "1-0"]
[WhiteElo "1431"]
[BlackElo "1576"]
[TimeControl "720+3"]
[EndTime "12:12:18 PDT"]
[Termination "Mrtre7 ha vinto per abbandono"]

1. d4 {[%clk 0:12:00.1]} 1... d5 {[%clk 0:12:00.9]} 2. c4 {[%clk 0:11:58]} 2...
e6 {[%clk 0:12:02.5]} 3. Nc3 {[%clk 0:11:58.1]} 3... Nf6 {[%clk 0:12:03.6]} 4.
cxd5 {[%clk 0:11:59.5]} 4... exd5 {[%clk 0:12:04.8]} 5. Bg5 {[%clk 0:11:57.5]}
5... Be7 {[%clk 0:12:06]} 6. e3 {[%clk 0:11:58.2]} 6... c6 {[%clk 0:12:07.1]} 7.
Bd3 {[%clk 0:11:59.2]} 7... O-O {[%clk 0:12:01.2]} 8. Nge2 {[%clk 0:11:56.1]}
8... Re8 {[%clk 0:11:56.9]} 9. O-O {[%clk 0:11:56.1]} 9... Ne4 {[%clk
0:11:57.1]} 10. Bxe7 {[%clk 0:11:54.6]} 10... Qxe7 {[%clk 0:11:45.1]} 11. Qc2
{[%clk 0:11:34.2]} 11... Na6 {[%clk 0:11:20.1]} 12. a3 {[%clk 0:11:27.6]} 12...
h6 {[%clk 0:11:13.7]} 13. f3 {[%clk 0:11:24.5]} 13... Nxc3 {[%clk 0:11:05.5]}
14. bxc3 {[%clk 0:11:11.7]} 14... Qxe3+ {[%clk 0:11:04.8]} 15. Kh1 {[%clk
0:11:11.2]} 15... Nc7 {[%clk 0:11:01.2]} 16. Rae1 {[%clk 0:11:12]} 16... Qg5
{[%clk 0:10:56.8]} 17. f4 {[%clk 0:10:46]} 17... Qf6 {[%clk 0:10:51.6]} 18. Ng3
{[%clk 0:10:44]} 18... Bd7 {[%clk 0:10:39]} 19. Qf2 {[%clk 0:09:21.9]} 19...
Rxe1 {[%clk 0:09:27.4]} 20. Rxe1 {[%clk 0:09:19.5]} 20... Re8 {[%clk 0:09:29.6]}
21. Rb1 {[%clk 0:08:24.6]} 21... b5 {[%clk 0:09:19.3]} 22. a4 {[%clk 0:08:04.7]}
22... a6 {[%clk 0:09:16.9]} 23. axb5 {[%clk 0:07:58.4]} 23... cxb5 {[%clk
0:09:11.3]} 24. Nh5 {[%clk 0:07:22.2]} 24... Qe7 {[%clk 0:09:02.1]} 25. Qg3
{[%clk 0:07:19.3]} 25... Ne6 {[%clk 0:08:31.2]} 26. Re1 {[%clk 0:07:12.9]} 26...
Qf8 {[%clk 0:08:18.2]} 27. Nf6+ {[%clk 0:06:54.4]} 27... Kh8 {[%clk 0:08:20.1]}
28. Nxe8 {[%clk 0:06:54]} 28... Qxe8 {[%clk 0:08:22]} 29. f5 {[%clk 0:06:51.3]}
1-0

[Event "Vener-dì-Rapid"]
[Site "Chess.com"]
[Date "2020.05.22"]
[Round "1"]
[White "Luca090267"]
[Black "sirmale49"]
[Result "1-0"]
[WhiteElo "1464"]
[BlackElo "1400"]
[TimeControl "720+3"]
[EndTime "12:14:17 PDT"]
[Termination "Luca090267 ha vinto per abbandono"]

1. e4 {[%clk 0:12:02.9]} 1... d5 {[%clk 0:11:59.6]} 2. exd5 {[%clk 0:12:03.8]}
2... Qxd5 {[%clk 0:12:00.6]} 3. Nc3 {[%clk 0:12:02.9]} 3... Qd6 {[%clk
0:12:02.3]} 4. d4 {[%clk 0:11:56.9]} 4... c6 {[%clk 0:12:04.2]} 5. Nf3 {[%clk
0:11:54.3]} 5... Bg4 {[%clk 0:12:04]} 6. Be2 {[%clk 0:11:53.9]} 6... Nf6 {[%clk
0:12:05.8]} 7. O-O {[%clk 0:11:47.5]} 7... Nbd7 {[%clk 0:12:07.5]} 8. Be3 {[%clk
0:11:30.8]} 8... Nb6 {[%clk 0:12:04.8]} 9. h3 {[%clk 0:11:13.5]} 9... Bh5 {[%clk
0:12:03.4]} 10. Ne5 {[%clk 0:11:01.9]} 10... Bxe2 {[%clk 0:12:00.1]} 11. Qxe2
{[%clk 0:11:01.6]} 11... e6 {[%clk 0:11:41.8]} 12. f3 {[%clk 0:10:54.7]} 12...
Nfd5 {[%clk 0:11:31.1]} 13. Nxd5 {[%clk 0:10:53.7]} 13... Nxd5 {[%clk
0:11:30.3]} 14. Bd2 {[%clk 0:10:39.1]} 14... Be7 {[%clk 0:11:18.4]} 15. c3
{[%clk 0:10:40.2]} 15... Bf6 {[%clk 0:11:17.9]} 16. Ng4 {[%clk 0:10:37.9]} 16...
Bh4 {[%clk 0:11:07.2]} 17. Be1 {[%clk 0:10:27.2]} 17... Bg5 {[%clk 0:11:05.5]}
18. Qe5 {[%clk 0:09:47.5]} 18... Qxe5 {[%clk 0:10:40.6]} 19. Nxe5 {[%clk
0:09:47.8]} 19... Bf4 {[%clk 0:10:27.8]} 20. Nd3 {[%clk 0:09:41.8]} 20... Bd6
{[%clk 0:10:25.6]} 21. Bd2 {[%clk 0:09:35.3]} 21... O-O-O {[%clk 0:10:22.4]} 22.
Rad1 {[%clk 0:09:24]} 22... Rhe8 {[%clk 0:10:15.7]} 23. Bc1 {[%clk 0:09:08.2]}
23... Nb6 {[%clk 0:10:09.4]} 24. Bf4 {[%clk 0:08:41.5]} 24... Bxf4 {[%clk
0:10:03.4]} 25. Nxf4 {[%clk 0:08:41.6]} 25... Nd5 {[%clk 0:10:04.1]} 26. Nxd5
{[%clk 0:08:41.4]} 26... Rxd5 {[%clk 0:10:00.6]} 27. Rd2 {[%clk 0:08:28.7]}
27... Red8 {[%clk 0:10:01.2]} 28. Rfd1 {[%clk 0:08:26.7]} 28... b5 {[%clk
0:10:02.7]} 29. Kf2 {[%clk 0:08:28.8]} 29... a5 {[%clk 0:10:04.4]} 30. Ke3
{[%clk 0:08:30]} 30... f5 {[%clk 0:09:49]} 31. f4 {[%clk 0:08:23.7]} 31... h6
{[%clk 0:09:49.1]} 32. g3 {[%clk 0:08:17.5]} 32... g5 {[%clk 0:09:48.6]} 33. b3
{[%clk 0:08:09.7]} 33... c5 {[%clk 0:09:28.1]} 34. dxc5 {[%clk 0:08:03]} 34...
Rxd2 {[%clk 0:09:28.3]} 35. Rxd2 {[%clk 0:08:02.9]} 35... Rxd2 {[%clk
0:09:29.8]} 36. Kxd2 {[%clk 0:08:03.9]} 36... Kc7 {[%clk 0:09:31.4]} 37. b4
{[%clk 0:08:04.3]} 37... a4 {[%clk 0:09:25.1]} 38. a3 {[%clk 0:08:04.1]} 38...
Kc6 {[%clk 0:09:26.9]} 39. Kd3 {[%clk 0:08:05.1]} 39... Kd5 {[%clk 0:09:28.4]}
40. Ke3 {[%clk 0:07:37.8]} 40... e5 {[%clk 0:09:20.4]} 41. fxg5 {[%clk
0:07:29.6]} 41... hxg5 {[%clk 0:09:20.9]} 42. Kf3 {[%clk 0:07:12.6]} 42... Kc4
{[%clk 0:09:18.3]} 43. c6 {[%clk 0:07:12.7]} 43... e4+ {[%clk 0:09:15.2]} 44.
Ke3 {[%clk 0:07:12.8]} 44... Kb3 {[%clk 0:08:42.9]} 45. c7 {[%clk 0:07:08]}
45... Kxa3 {[%clk 0:08:39.6]} 46. c8=Q {[%clk 0:07:07.7]} 46... Kb3 {[%clk
0:08:41.5]} 47. Qxf5 {[%clk 0:07:03.7]} 47... a3 {[%clk 0:08:42.7]} 48. Qf1
{[%clk 0:06:30.6]} 48... a2 {[%clk 0:08:42.6]} 49. Qa1 {[%clk 0:06:32.1]} 1-0

[Event "Vener-dì-Rapid"]
[Site "Chess.com"]
[Date "2020.05.22"]
[Round "2"]
[White "laremaro"]
[Black "malberici"]
[Result "0-1"]
[WhiteElo "1561"]
[BlackElo "1481"]
[TimeControl "720+3"]
[EndTime "12:19:26 PDT"]
[Termination "malberici ha vinto per abbandono"]

1. e4 {[%clk 0:12:02.9]} 1... Nf6 {[%clk 0:12:01.1]} 2. Nc3 {[%clk 0:11:52]}
2... e5 {[%clk 0:12:01.3]} 3. Nf3 {[%clk 0:11:51.8]} 3... Bc5 {[%clk 0:12:03.1]}
4. Bc4 {[%clk 0:11:51.6]} 4... c6 {[%clk 0:12:02.2]} 5. O-O {[%clk 0:11:42.9]}
5... d5 {[%clk 0:12:00.4]} 6. exd5 {[%clk 0:11:37]} 6... cxd5 {[%clk 0:12:01.1]}
7. Bb5+ {[%clk 0:11:34.1]} 7... Nc6 {[%clk 0:12:01.1]} 8. d4 {[%clk 0:11:06.3]}
8... exd4 {[%clk 0:11:50.5]} 9. Re1+ {[%clk 0:11:02]} 9... Be6 {[%clk
0:11:52.4]} 10. Nxd4 {[%clk 0:11:02.6]} 10... O-O {[%clk 0:11:49.4]} 11. Nxe6
{[%clk 0:11:02.6]} 11... fxe6 {[%clk 0:11:49.2]} 12. Rxe6 {[%clk 0:11:04.3]}
12... a6 {[%clk 0:11:30.5]} 13. Bxc6 {[%clk 0:10:58.2]} 13... bxc6 {[%clk
0:11:30.3]} 14. Rxc6 {[%clk 0:10:59.3]} 14... Bxf2+ {[%clk 0:10:53.8]} 15. Kh1
{[%clk 0:11:00.1]} 15... Ba7 {[%clk 0:10:49.1]} 16. Rxf6 {[%clk 0:10:38.8]}
16... Qxf6 {[%clk 0:10:45.5]} 17. Qxd5+ {[%clk 0:10:33.4]} 17... Kh8 {[%clk
0:10:45.7]} 18. Bd2 {[%clk 0:10:27.1]} 18... Qf1+ {[%clk 0:10:44.3]} 0-1

[Event "Vener-dì-Rapid"]
[Site "Chess.com"]
[Date "2020.05.22"]
[Round "2"]
[White "Mrtre7"]
[Black "mr6701"]
[Result "0-1"]
[WhiteElo "1426"]
[BlackElo "1689"]
[TimeControl "720+3"]
[EndTime "12:25:04 PDT"]
[Termination "mr6701 ha vinto per abbandono"]

1. d4 {[%clk 0:12:02.9]} 1... d5 {[%clk 0:11:58.5]} 2. c4 {[%clk 0:12:04.2]}
2... e6 {[%clk 0:11:59.3]} 3. Nc3 {[%clk 0:12:05.5]} 3... Nf6 {[%clk 0:12:00.2]}
4. cxd5 {[%clk 0:12:07.2]} 4... exd5 {[%clk 0:11:53.5]} 5. Bg5 {[%clk 0:12:07]}
5... Be7 {[%clk 0:11:53.5]} 6. e3 {[%clk 0:12:07.4]} 6... h6 {[%clk 0:11:55.5]}
7. Bh4 {[%clk 0:12:07.1]} 7... O-O {[%clk 0:11:55.3]} 8. Bd3 {[%clk 0:12:06.6]}
8... c5 {[%clk 0:11:56.3]} 9. dxc5 {[%clk 0:10:25.4]} 9... Bxc5 {[%clk 0:11:57]}
10. Qf3 {[%clk 0:10:05.2]} 10... d4 {[%clk 0:11:10.6]} 11. Bxf6 {[%clk
0:09:41.8]} 11... Qxf6 {[%clk 0:11:11]} 12. Qxf6 {[%clk 0:09:42.4]} 12... gxf6
{[%clk 0:11:13.9]} 13. Nd5 {[%clk 0:09:42.5]} 13... dxe3 {[%clk 0:10:47.6]} 14.
fxe3 {[%clk 0:08:19.8]} 14... Na6 {[%clk 0:10:39.6]} 15. Nxf6+ {[%clk
0:07:41.9]} 15... Kh8 {[%clk 0:10:40.7]} 16. e4 {[%clk 0:07:01]} 16... Bd4
{[%clk 0:10:33.8]} 17. Nf3 {[%clk 0:05:39.1]} 17... Bxf6 {[%clk 0:10:32.2]} 18.
e5 {[%clk 0:05:39.6]} 18... Bg7 {[%clk 0:10:31.7]} 19. O-O {[%clk 0:05:41.3]}
19... Nb4 {[%clk 0:10:25.4]} 20. Bc4 {[%clk 0:05:37.8]} 20... Be6 {[%clk
0:10:26.1]} 21. Bd3 {[%clk 0:05:35.9]} 21... Nxd3 {[%clk 0:10:26.5]} 0-1

[Event "Vener-dì-Rapid"]
[Site "Chess.com"]
[Date "2020.05.22"]
[Round "2"]
[White "sergiodone"]
[Black "sirmale49"]
[Result "1-0"]
[WhiteElo "1434"]
[BlackElo "1393"]
[TimeControl "720+3"]
[EndTime "12:36:40 PDT"]
[Termination "sergiodone ha vinto per tempo"]

1. e4 {[%clk 0:12:02.9]} 1... d5 {[%clk 0:11:54.1]} 2. exd5 {[%clk 0:12:01.2]}
2... Qxd5 {[%clk 0:11:55.4]} 3. c4 {[%clk 0:12:01.6]} 3... Qe6+ {[%clk
0:11:53.7]} 4. Be2 {[%clk 0:12:00.3]} 4... c6 {[%clk 0:11:54.8]} 5. d4 {[%clk
0:12:01.9]} 5... Nf6 {[%clk 0:11:51.4]} 6. Nc3 {[%clk 0:12:01.8]} 6... Ne4
{[%clk 0:11:47.7]} 7. Nxe4 {[%clk 0:11:58.3]} 7... Qxe4 {[%clk 0:11:48.9]} 8. f3
{[%clk 0:11:52.7]} 8... Qh4+ {[%clk 0:11:34.6]} 9. g3 {[%clk 0:11:51.4]} 9...
Qf6 {[%clk 0:11:29.4]} 10. Bf4 {[%clk 0:11:42.3]} 10... e6 {[%clk 0:11:05]} 11.
Qd2 {[%clk 0:11:23.2]} 11... a5 {[%clk 0:10:58.6]} 12. Qe3 {[%clk 0:11:06.2]}
12... Bb4+ {[%clk 0:10:54.7]} 13. Kf2 {[%clk 0:11:07.7]} 13... O-O {[%clk
0:10:38.5]} 14. h4 {[%clk 0:11:08.3]} 14... h6 {[%clk 0:10:19.5]} 15. h5 {[%clk
0:11:04.9]} 15... Be7 {[%clk 0:10:06.5]} 16. Bd3 {[%clk 0:11:06.5]} 16... Nd7
{[%clk 0:09:34]} 17. Ne2 {[%clk 0:10:39.7]} 17... c5 {[%clk 0:08:53.1]} 18. Rag1
{[%clk 0:10:28.7]} 18... cxd4 {[%clk 0:08:49.2]} 19. Nxd4 {[%clk 0:10:27.6]}
19... Nc5 {[%clk 0:08:47.3]} 20. Bc2 {[%clk 0:10:22.5]} 20... Rd8 {[%clk
0:08:34.8]} 21. Be5 {[%clk 0:10:20.4]} 21... Qg5 {[%clk 0:08:25.9]} 22. f4
{[%clk 0:10:21.9]} 22... Qg4 {[%clk 0:07:53]} 23. Bd1 {[%clk 0:10:21.8]} 23...
Qxd1 {[%clk 0:06:10.8]} 24. Rxd1 {[%clk 0:10:21.2]} 24... f6 {[%clk 0:06:01.9]}
25. Bc7 {[%clk 0:10:17.7]} 25... Rd7 {[%clk 0:05:52.3]} 26. Nxe6 {[%clk
0:10:17.4]} 26... Kf7 {[%clk 0:05:21.3]} 27. Nxc5 {[%clk 0:10:13.9]} 27... Rxc7
{[%clk 0:05:03.6]} 28. Ne4 {[%clk 0:09:57.1]} 28... f5 {[%clk 0:05:00]} 29. Nd2
{[%clk 0:09:51.5]} 29... Bc5 {[%clk 0:04:59.5]} 30. Qxc5 {[%clk 0:09:27.1]}
30... Rxc5 {[%clk 0:04:58.9]} 31. b3 {[%clk 0:09:28.8]} 31... Be6 {[%clk
0:04:53.1]} 32. Nf3 {[%clk 0:09:29.7]} 32... Re8 {[%clk 0:04:36.9]} 33. Ne5+
{[%clk 0:09:30.3]} 33... Kf6 {[%clk 0:04:15.8]} 34. Rd6 {[%clk 0:09:26]} 34...
Ke7 {[%clk 0:03:32.5]} 35. Rhd1 {[%clk 0:09:25.2]} 35... Kf6 {[%clk 0:03:19.1]}
36. Rb6 {[%clk 0:08:56.2]} 36... Re7 {[%clk 0:02:56.2]} 37. Rdd6 {[%clk
0:08:49]} 37... Rxe5 {[%clk 0:02:32.5]} 38. fxe5+ {[%clk 0:08:48.2]} 38... Kxe5
{[%clk 0:02:34]} 39. c5 {[%clk 0:08:41.8]} 39... Bf7 {[%clk 0:02:04.2]} 40. Rd2
{[%clk 0:08:26.5]} 40... Rc7 {[%clk 0:01:47.9]} 41. Rb5 {[%clk 0:07:49.7]} 41...
Ke4 {[%clk 0:01:08]} 42. Rxa5 {[%clk 0:07:49.2]} 42... Bxh5 {[%clk 0:01:05.4]}
43. Ra4+ {[%clk 0:07:41.1]} 43... Ke5 {[%clk 0:01:03.9]} 44. b4 {[%clk
0:07:37.5]} 44... Be8 {[%clk 0:00:58.7]} 45. Ra3 {[%clk 0:07:38.3]} 45... Bb5
{[%clk 0:00:54]} 46. Re3+ {[%clk 0:07:34.9]} 46... Kf6 {[%clk 0:00:53.7]} 47.
Rd6+ {[%clk 0:07:31.9]} 47... Kg5 {[%clk 0:00:52.7]} 48. Ree6 {[%clk 0:07:16.6]}
48... f4 {[%clk 0:00:09]} 49. Re5+ {[%clk 0:07:13.2]} 1-0

[Event "Vener-dì-Rapid"]
[Site "Chess.com"]
[Date "2020.05.22"]
[Round "2"]
[White "pedrak"]
[Black "Luca090267"]
[Result "1-0"]
[WhiteElo "1702"]
[BlackElo "1455"]
[TimeControl "720+3"]
[EndTime "12:37:20 PDT"]
[Termination "pedrak ha vinto per abbandono"]

1. d4 {[%clk 0:11:57.7]} 1... Nf6 {[%clk 0:12:00.8]} 2. Nf3 {[%clk 0:11:58.7]}
2... g6 {[%clk 0:12:01.4]} 3. h3 {[%clk 0:11:59.5]} 3... Bg7 {[%clk 0:12:02.7]}
4. Bf4 {[%clk 0:12:00.6]} 4... O-O {[%clk 0:12:04]} 5. e3 {[%clk 0:12:01.9]}
5... d6 {[%clk 0:12:05.9]} 6. Be2 {[%clk 0:12:03]} 6... c5 {[%clk 0:12:04.8]} 7.
c3 {[%clk 0:12:04]} 7... cxd4 {[%clk 0:12:06]} 8. exd4 {[%clk 0:12:05.3]} 8...
Nc6 {[%clk 0:12:08.2]} 9. O-O {[%clk 0:12:06.4]} 9... a6 {[%clk 0:12:03.2]} 10.
Nbd2 {[%clk 0:12:07.1]} 10... b5 {[%clk 0:12:04.2]} 11. a3 {[%clk 0:12:07.6]}
11... Bb7 {[%clk 0:12:05.8]} 12. Re1 {[%clk 0:12:08.3]} 12... Nd7 {[%clk
0:11:39.3]} 13. Bf1 {[%clk 0:11:30.4]} 13... e5 {[%clk 0:11:35.4]} 14. dxe5
{[%clk 0:11:28.9]} 14... dxe5 {[%clk 0:11:33.9]} 15. Bg3 {[%clk 0:11:18.6]}
15... f5 {[%clk 0:11:29.8]} 16. Qb3+ {[%clk 0:11:10.3]} 16... Kh8 {[%clk
0:11:25.9]} 17. Rad1 {[%clk 0:11:11]} 17... Qc7 {[%clk 0:10:47.2]} 18. Ng5
{[%clk 0:10:56.3]} 18... Na5 {[%clk 0:09:33.2]} 19. Nf7+ {[%clk 0:10:45.9]}
19... Rxf7 {[%clk 0:09:15.6]} 20. Qxf7 {[%clk 0:10:46.4]} 20... Rf8 {[%clk
0:09:12.2]} 21. Qe6 {[%clk 0:10:35.1]} 21... Nc5 {[%clk 0:08:46.1]} 22. Qa2
{[%clk 0:10:29.4]} 22... Nc6 {[%clk 0:08:39.2]} 23. b4 {[%clk 0:09:58.8]} 23...
Nd7 {[%clk 0:07:38.5]} 24. f3 {[%clk 0:09:54.3]} 24... Nf6 {[%clk 0:07:29.1]}
25. c4 {[%clk 0:09:45]} 25... Nh5 {[%clk 0:06:52.2]} 26. Bf2 {[%clk 0:09:18.3]}
26... Nd4 {[%clk 0:06:28.5]} 27. c5 {[%clk 0:08:39]} 27... Rd8 {[%clk
0:05:46.4]} 28. Nb1 {[%clk 0:08:03.6]} 28... Bd5 {[%clk 0:05:15.3]} 29. Qb2
{[%clk 0:07:52.8]} 29... Nc6 {[%clk 0:05:02.7]} 30. Nc3 {[%clk 0:07:43.1]} 30...
Be6 {[%clk 0:04:30.7]} 31. Rxd8+ {[%clk 0:07:39.6]} 31... Nxd8 {[%clk
0:04:30.3]} 32. Qd2 {[%clk 0:07:32]} 32... Nc6 {[%clk 0:04:15.8]} 33. Rd1 {[%clk
0:06:46.1]} 33... Nd4 {[%clk 0:03:51.6]} 34. Ne2 {[%clk 0:06:41]} 34... Nxe2+
{[%clk 0:03:16.3]} 35. Bxe2 {[%clk 0:06:30.4]} 35... Bf8 {[%clk 0:02:47.2]} 36.
Qd8 {[%clk 0:06:20.6]} 36... Qxd8 {[%clk 0:02:46.5]} 37. Rxd8 {[%clk 0:06:21.5]}
37... Kg7 {[%clk 0:02:48.6]} 38. Ra8 {[%clk 0:06:04.2]} 38... Nf4 {[%clk
0:02:28.3]} 39. Bf1 {[%clk 0:05:54.8]} 39... Bc4 {[%clk 0:02:02.3]} 40. Rxa6
{[%clk 0:05:50]} 40... Bxf1 {[%clk 0:02:02.2]} 41. Kxf1 {[%clk 0:05:50.1]} 41...
Nd3 {[%clk 0:02:01.9]} 42. Ra7+ {[%clk 0:05:34.7]} 42... Kh6 {[%clk 0:02:00.6]}
43. c6 {[%clk 0:05:34.1]} 43... Nxf2 {[%clk 0:01:43.3]} 44. Kxf2 {[%clk
0:05:34.3]} 44... e4 {[%clk 0:01:43.5]} 45. c7 {[%clk 0:05:33.5]} 45... Bg7
{[%clk 0:01:45.5]} 46. c8=Q {[%clk 0:05:31.9]} 46... Bd4+ {[%clk 0:01:47]} 47.
Ke2 {[%clk 0:05:31.3]} 47... Bxa7 {[%clk 0:01:48.8]} 48. Qf8+ {[%clk 0:05:30.8]}
48... Kg5 {[%clk 0:01:48]} 49. h4+ {[%clk 0:05:30.6]} 49... Kh5 {[%clk 0:01:43]}
50. Qf6 {[%clk 0:05:26.3]} 50... exf3+ {[%clk 0:01:42.7]} 51. Kxf3 {[%clk
0:05:22.6]} 51... Kh6 {[%clk 0:01:34]} 52. Qg5+ {[%clk 0:05:20.2]} 52... Kg7
{[%clk 0:01:34.4]} 53. Qe7+ {[%clk 0:05:21.7]} 1-0

[Event "Vener-dì-Rapid"]
[Site "Chess.com"]
[Date "2020.05.22"]
[Round "3"]
[White "malberici"]
[Black "sergiodone"]
[Result "0-1"]
[WhiteElo "1436"]
[BlackElo "1443"]
[TimeControl "720+3"]
[EndTime "12:47:40 PDT"]
[Termination "sergiodone ha vinto per abbandono"]

1. d4 {[%clk 0:12:02.9]} 1... Nf6 {[%clk 0:11:58.4]} 2. Nf3 {[%clk 0:11:54.9]}
2... c5 {[%clk 0:11:57.4]} 3. dxc5 {[%clk 0:11:53.8]} 3... Qa5+ {[%clk
0:11:57.2]} 4. Nc3 {[%clk 0:11:48.9]} 4... Qxc5 {[%clk 0:11:56.6]} 5. e3 {[%clk
0:11:48.6]} 5... a6 {[%clk 0:11:56.9]} 6. Bd3 {[%clk 0:11:48.4]} 6... d6 {[%clk
0:11:51]} 7. O-O {[%clk 0:11:46.9]} 7... Qc7 {[%clk 0:11:52.5]} 8. a3 {[%clk
0:11:40.3]} 8... g6 {[%clk 0:11:54.2]} 9. Nd4 {[%clk 0:11:33.8]} 9... Bg7 {[%clk
0:11:53.7]} 10. f4 {[%clk 0:11:33]} 10... O-O {[%clk 0:11:53.7]} 11. f5 {[%clk
0:11:27.9]} 11... Nc6 {[%clk 0:11:52]} 12. fxg6 {[%clk 0:11:26.2]} 12... Nxd4
{[%clk 0:11:47.1]} 13. gxh7+ {[%clk 0:11:21.6]} 13... Kh8 {[%clk 0:11:47.9]} 14.
exd4 {[%clk 0:11:21.7]} 14... Bg4 {[%clk 0:11:33.2]} 15. Qe1 {[%clk 0:11:14]}
15... Bh5 {[%clk 0:10:44.2]} 16. Qh4 {[%clk 0:11:04.5]} 16... Bg6 {[%clk
0:10:36.4]} 17. Bh6 {[%clk 0:10:45.4]} 17... Qa5 {[%clk 0:09:24.5]} 18. Bxg7+
{[%clk 0:10:29]} 18... Kxg7 {[%clk 0:09:23.4]} 19. Rxf6 {[%clk 0:09:27.2]} 19...
exf6 {[%clk 0:09:18.6]} 20. Ne4 {[%clk 0:09:26.8]} 20... Bxe4 {[%clk 0:09:11.5]}
21. Bxe4 {[%clk 0:09:23.7]} 21... Qg5 {[%clk 0:09:11.7]} 22. Qh3 {[%clk
0:09:03.2]} 22... Rab8 {[%clk 0:09:07.2]} 23. Rf1 {[%clk 0:08:55.1]} 23... d5
{[%clk 0:09:07.9]} 24. Bd3 {[%clk 0:08:43.1]} 24... Kh8 {[%clk 0:09:09]} 25. Qf3
{[%clk 0:07:56.3]} 25... Rbe8 {[%clk 0:09:05.9]} 26. Qxd5 {[%clk 0:07:39.5]} 0-1